Cogmind - Beta 13 *** ADVENTURER MODE // 2024.03.17 @ 21:23:30 Player: skye Result: Destroyed by S-27 Virus with Autogun Performance ------------- Evolutions (1) 500 Regions Visited (5) 1000 Robots Destroyed (35) 175 Value Destroyed (1065) 1065 Prototype IDs (3) 60 Alien Tech Used (0) 0 Bonus (669) 669 TOTAL SCORE: 3469 Bonus ------- Follower Combat Kills 69 Met Imprinter 300 Was Imprinted 300 Cogmind --------- Core Integrity 0/400 Matter 250/300 Energy 100/100 System Corruption 0% Temperature Danger (417) Movement Core (200) Ox3 Location -6/Proximity Caves Parts ------- > --- POWER (1) -------- (None) > --- PROPULSION (4) --- (None) > --- UTILITY (2) ------ Medium Storage Unit Power Shielding > --- WEAPON (2) ------- (None) > --- INVENTORY (10) --- Hacking Suite Bomb Factory No. 2 Peak State ------------ > --- POWER ------------ Heavy Ion Engine > --- PROPULSION ------- Aluminum Leg Aluminum Leg > --- UTILITY ---------- Medium Storage Unit Transport Network Coupler > --- WEAPON ----------- Pulse Rifle Light Assault Rifle > --- INVENTORY -------- Improved Ion Engine Improved Heat Sink Power Shielding Hacking Suite Bomb Factory No. 2 Medium Laser Heavy Assault Rifle Grenade Launcher CR-A16's Pointy Stick [Rating: 13] Favorites ----------- Power Heavy Ion Engine Engine Heavy Ion Engine Propulsion Aluminum Leg Leg Aluminum Leg Utility Medium Storage Unit Device Heat Sink Storage Medium Storage Unit Processor Transport Network Coupler Protection Power Shielding Weapon Light Assault Rifle Energy Gun Pulse Rifle Ballistic Gun Light Assault Rifle Launcher Grenade Launcher Build | -11 -10 -9 -9 -7 -6 ------- Run | Yrd Mat Mat Min Zio Pro Slots Evolved 2 | . . 2 . . . Power . | . . . . . . Propulsion 2 | . . 2 . . . Utility . | . . . . . . Weapon . | . . . . . . Parts Attached 31 | 5 9 13 . . 4 Power 5 | 1 1 3 . . . Engine 5 | 1 1 3 . . . Core . | . . . . . . Reactor . | . . . . . . Propulsion 9 | 2 3 4 . . . Treads . | . . . . . . Leg 9 | 2 3 4 . . . Wheel . | . . . . . . Hover . | . . . . . . Flight . | . . . . . . Utility 8 | 1 3 3 . . 1 Device 2 | 1 1 . . . . Storage 2 | . 2 . . . . Processor 1 | . . 1 . . . Hackware . | . . . . . . Protection 3 | . . 2 . . 1 Artifact . | . . . . . . Weapon 9 | 1 2 3 . . 3 Energy Gun 4 | . 2 1 . . 1 Energy Cannon . | . . . . . . Ballistic Gun 3 | 1 . 1 . . 1 Ballistic Cannon . | . . . . . . Launcher 2 | . . 1 . . 1 Special Weapon . | . . . . . . Impact Weapon . | . . . . . . Slashing Weapon . | . . . . . . Piercing Weapon . | . . . . . . Special Melee Weapon . | . . . . . . Unidentified Prototypes . | . . . . . . Parts Lost 14 | . 2 4 . . 8 Power 2 | . 1 . . . 1 Propulsion 5 | . . 3 . . 2 Utility . | . . . . . . Weapon 7 | . 1 1 . . 5 Highest Loss Streak 8 | . 2 2 . . 8 To Critical Strikes . | . . . . . . Average Slot Usage (%) 81 | . 94 86 77 77 73 Engine 11 | . 12 11 11 11 11 Leg 24 | . 28 31 22 22 19 Device 1 | . 7 . . . . Storage 12 | . 18 12 11 11 11 Processor 8 | . . 7 11 11 9 Energy Gun 10 | . 11 9 11 11 11 Ballistic Gun 11 | . 14 11 11 11 10 Naked Turns . | . . . . . . Heaviest Build 24 | 6 22 22 22 22 24 Greatest Support 40 | 20 20 40 20 20 20 Greatest Overweight (x) 7 | . 4 2 1 1 7 Average Overweight (x) . | . . . 1 1 1 Largest Inventory Capacity 10 | 5 10 10 10 10 10 Average Capacity 9 | 5 9 10 10 10 10 Most Carried 10 | 5 10 10 9 10 10 Average Carried 8 | 3 7 9 9 9 6 Final Capacity 10 | 5 10 10 10 10 10 Final Carried 10 | 5 10 10 9 10 3 Class Distribution -------------------- 90% | Mutant 9% | Scavenger-Mutant Dominant Class ---------------- Mutant | -10/Materials Mutant | -9/Materials Mutant | -9/Mines Mutant | -7/Zion Mutant | -6/Proximity Caves Resources | -11 -10 -9 -9 -7 -6 ----------- Run | Yrd Mat Mat Min Zio Pro Matter Collected 913 | 277 418 194 20 3 1 Remotely . | . . . . . . Salvage Created 1229 | 44 568 402 93 . 122 Parts 72 | 2 26 40 3 . 1 Haulers Intercepted . | . . . . . . Recyclers Shooed . | . . . . . . Parts Field Recycled . | . . . . . . Retrieved Matter . | . . . . . . Parts Self-Destructed 7 | . . . . 4 3 Prevented 1 | . . . . . 1 Kills | -11 -10 -9 -9 -7 -6 ------- Run | Yrd Mat Mat Min Zio Pro Combat Hostiles Destroyed 31 | 1 12 14 2 . 2 Guns 28 | 1 12 11 2 . 2 AOE 3 | . . 3 . . . Classes Destroyed 7 | 1 1 4 1 . . Worker 1 | . . 1 . . . Operator 1 | . . 1 . . . Watcher 2 | . 1 1 . . . Swarmer 7 | . . 7 . . . Grunt 19 | 1 12 4 1 . 1 Brawler 1 | . . . 1 . . Sentry 4 | . . 3 . . 1 Best Kill Streak 5 | 1 5 5 2 . 2 Combat Bots Only 4 | 1 4 4 2 . 2 Max Kills in Single Turn 3 | 1 1 3 1 . 1 Gunslinging . | . . . . . . Exploded 3 | . . 3 . . . Melee . | . . . . . . Uniques/NPCs Destroyed . | . . . . . . Combat | -11 -10 -9 -9 -7 -6 -------- Run | Yrd Mat Mat Min Zio Pro Hostile Shots Fired 255 | 9 74 89 2 . 81 Missed 76 | 4 19 34 1 . 18 Damage Taken 2056 | 42 577 478 8 . 951 Core 534 | 16 114 69 . . 335 Absorbed by Shields . | . . . . . . Redirected to Shielding 44 | . . . . . 44 Ignored by Resistances 593 | 13 174 149 2 . 255 Core Remaining (%) 70 | 93 48 . . . . Volleys Fired 122 | 9 49 44 3 . 17 Largest 2 | 1 2 2 2 . 2 Hottest 86 | 20 60 83 83 . 86 Shots Fired 214 | 9 93 79 6 . 27 Gun 211 | 9 93 77 6 . 26 Cannon . | . . . . . . Launcher 3 | . . 2 . . 1 Special . | . . . . . . Kinetic 124 | 9 49 52 3 . 11 Thermal 70 | . 27 25 3 . 15 Explosive 3 | . . 2 . . 1 Electromagnetic 17 | . 17 . . . . Robot Hit Streak 16 | 9 15 14 7 . 16 Robot Miss Streak 2 | . 2 2 . . 1 Penetration Max . | . . . . . . Secondary Targets 8 | . 1 6 . . 1 Max Gunslinging Chain 1 | . 1 1 . . 1 Shots Hit Robots 184 | 9 79 67 5 . 24 Core Hits 66 | 2 25 26 3 . 10 Critical Kills . | . . . . . . Critical Parts Destroyed . | . . . . . . Critical Strikes 4 | . 1 . 1 . 2 Burn 3 | . . . 1 . 2 Corrupt 1 | . 1 . . . . Melee Attacks . | . . . . . . Impact . | . . . . . . Slashing . | . . . . . . Piercing . | . . . . . . Sneak Attacks . | . . . . . . Combat Hostiles . | . . . . . . Follow-up Attacks . | . . . . . . Damage Inflicted 2693 | 113 1148 968 65 . 399 Guns 2331 | 113 1016 794 65 . 343 Cannons . | . . . . . . Explosions 355 | . 125 174 . . 56 Melee . | . . . . . . Ramming 7 | . 7 . . . . Kinetic 1236 | 113 532 440 14 . 137 Thermal 994 | . 383 354 51 . 206 Explosive 230 | . . 174 . . 56 Electromagnetic 226 | . 226 . . . . Impact . | . . . . . . Slashing . | . . . . . . Piercing . | . . . . . . Highest Corruption 2 | . 2 . . . . Average Corruption 1 | . 1 . . . . Corruption Purged . | . . . . . . Corruption Blocked . | . . . . . . Effects 2 | . 2 . . . . Message Errors 1 | . 1 . . . . Energy Discharges 1 | . 1 . . . . Overload Shots . | . . . . . . Overflow Damage 2 | . . 2 . . . Projectiles . | . . . . . . Explosions 2 | . . 2 . . . Melee . | . . . . . . Knockbacks . | . . . . . . Impact . | . . . . . . Kinetic . | . . . . . . Secondary . | . . . . . . Self-Inflicted Damage 86 | . 35 28 . . 23 Shots 3 | . 1 1 . . 1 Rammed . | . . . . . . Targets Rammed 2 | . 2 . . . . Kicked 2 | . 2 . . . . Crushed . | . . . . . . Highest Temperature 460 | . 129 208 76 . 460 Average Temperature 88 | . 40 63 41 . 242 Received Heat Transfer 1200 | 30 411 204 6 . 549 Siege Activations . | . . . . . . Robots Corrupted . | . . . . . . Combat Hostiles . | . . . . . . Parts Fried . | . . . . . . Impact Corruptions . | . . . . . . Robots Melted . | . . . . . . Combat Hostiles . | . . . . . . Parts Melted 2 | . 1 . . . 1 Heat Transferred 2341 | . 725 765 185 . 666 Parts Sabotaged . | . . . . . . Parts Stolen . | . . . . . . Parts Stripped . | . . . . . . Power Chain Reactions 2 | . 2 . . . . Alert | -11 -10 -9 -9 -7 -6 ------- Run | Yrd Mat Mat Min Zio Pro Peak Influence 208 | 20 198 208 50 . . Initial 23 | . 11 23 4 . . Average 45 | 8 39 69 4 . . Maximum Alert Level 1 | . . 1 . . . Low Security (%) 99 | 100 100 98 100 . . Level 1 . | . . 1 . . . Level 2 . | . . . . . . Level 3 . | . . . . . . Level 4 . | . . . . . . Level 5 . | . . . . . . High Security . | . . . . . . Max Security . | . . . . . . Squads Dispatched 3 | . 2 1 . . . Investigation 3 | . 2 1 . . . Extermination . | . . . . . . Reinforcement . | . . . . . . Assault . | . . . . . . Garrison . | . . . . . . Intercept . | . . . . . . Searches Triggered . | . . . . . . Construction Impeded . | . . . . . . Haulers Reinforced . | . . . . . . Active Scanning Responses . | . . . . . . Cargo Convoy Interrupts . | . . . . . . Stealth | -11 -10 -9 -9 -7 -6 --------- Run | Yrd Mat Mat Min Zio Pro Distress Signals 5 | . 3 2 . . . Communications Jammed . | . . . . . . Distress Signals . | . . . . . . Times Spotted 48 | 1 14 23 2 . 8 Peak Tracking Total 7 | 1 5 6 2 . 7 Tactical Retreats 3 | . . 3 . . . Traps | -11 -10 -9 -9 -7 -6 ------- Run | Yrd Mat Mat Min Zio Pro Traps Triggered . | . . . . . . Indirectly . | . . . . . . Trap Hack Attempts . | . . . . . . Triggered . | . . . . . . Disarmed . | . . . . . . Reprogrammed . | . . . . . . Reused . | . . . . . . Traps Extracted . | . . . . . . Installed . | . . . . . . Triggered . | . . . . . . Machines | -11 -10 -9 -9 -7 -6 ---------- Run | Yrd Mat Mat Min Zio Pro Machines Disabled 1 | . 1 . . . . Max in Single Turn 1 | . 1 . . . . Machines Repaired . | . . . . . . Machines Dismantled . | . . . . . . Machines Sabotaged . | . . . . . . Overloaded Fab Kills . | . . . . . . Hacking | -11 -10 -9 -9 -7 -6 --------- Run | Yrd Mat Mat Min Zio Pro Machines Accessed 14 | . 4 10 . . . Terminals 10 | . 2 8 . . . Fabricators . | . . . . . . Repair Stations 1 | . 1 . . . . Recycling Units 1 | . 1 . . . . Scanalyzers 2 | . . 2 . . . Garrison Access . | . . . . . . Total Hacks 56 | . 13 43 . . . Successful 43 | . 8 35 . . . Failed 13 | . 5 8 . . . Catastrophic 1 | . 1 . . . . Database Lockouts . | . . . . . . Manual 29 | . 4 18 . 7 . Terminals 43 | . 8 35 . . . Fabricators . | . . . . . . Repair Stations 3 | . 3 . . . . Recycling Units 2 | . 2 . . . . Scanalyzers 8 | . . 8 . . . Garrison Access . | . . . . . . Terminal Hacks 33 | . 6 27 . . . Record 23 | . 3 20 . . . Robot Analysis 1 | . . 1 . . . Prototype ID Bank 1 | . . 1 . . . Level Access Points 1 | . . 1 . . . Emergency Access Points 2 | . 1 1 . . . Alert Level 2 | . 2 . . . . Dispatch Records 1 | . . 1 . . . Transport Status 1 | . . 1 . . . Recall Investigation 1 | . . 1 . . . Fabricator Hacks . | . . . . . . Repair Station Hacks 1 | . 1 . . . . Scan Component 1 | . 1 . . . . Recycling Unit Hacks 1 | . 1 . . . . Report Inventory 1 | . 1 . . . . Scanalyzer 8 | . . 8 . . . Insert Component 4 | . . 4 . . . Analyze 4 | . . 4 . . . Garrison Access Hacks . | . . . . . . Unauthorized Hacks . | . . . . . . Terminals . | . . . . . . Fabricators . | . . . . . . Repair Stations . | . . . . . . Recycling Units . | . . . . . . Scanalyzers . | . . . . . . Garrison Access . | . . . . . . Data Cores Recovered 1 | . . 1 . . . Used . | . . . . . . Hacking Detections 12 | . 4 8 . . . Full Trace Events 6 | . 4 2 . . . Feedback Events 2 | . 2 . . . . Corruption 2 | . 2 . . . . Feedback Blocked . | . . . . . . Robot Schematics Acquired 2 | . . . . 2 . Robots Built . | . . . . . . Authchips . | . . . . . . Time . | . . . . . . Total Robot Build Rating . | . . . . . . Part Schematics Acquired 18 | . . 4 . 14 . Parts Built . | . . . . . . Authchips . | . . . . . . Time . | . . . . . . Total Part Build Rating . | . . . . . . Parts Repaired . | . . . . . . Time . | . . . . . . Parts Recycled . | . . . . . . Recycled Matter . | . . . . . . Retrieved Matter . | . . . . . . Retrieved Components . | . . . . . . Parts Scanalyzed 4 | . . 4 . . . Part Schematics Acquired 4 | . . 4 . . . Parts Damaged . | . . . . . . Bothacking | -11 -10 -9 -9 -7 -6 ------------ Run | Yrd Mat Mat Min Zio Pro Used RIF Installer . | . . . . . . Robots Hacked . | . . . . . . Non-combat . | . . . . . . Combat . | . . . . . . Robot Hacks Applied . | . . . . . . Relay Couplers Released . | . . . . . . Fabnet Peak Effective % . | . . . . . . Robots Rewired . | . . . . . . Allies Hacked . | . . . . . . Hacks Repelled . | . . . . . . Allies | -11 -10 -9 -9 -7 -6 -------- Run | Yrd Mat Mat Min Zio Pro Total Allies 4 | . . . . 4 . Largest Group 4 | . . . . 4 4 Highest-Rated Group 154 | . . . . 154 154 Highest-Rated Ally 39 | . . . . 39 39 Total Orders . | . . . . . . Ally Attacks 10 | . . . . . 10 Total Damage 218 | . . . . . 218 Kills 2 | . . . . . 2 Allies Corrupted . | . . . . . . Allies Melted . | . . . . . . Intel | -11 -10 -9 -9 -7 -6 ------- Run | Yrd Mat Mat Min Zio Pro Robot Analysis Total 1 | . . 1 . . . Derelict Logs Recovered 3 | . . . . 2 1 Drone Launches . | . . . . . . Drone Recoveries . | . . . . . . Exploration | -11 -10 -9 -9 -7 -6 ------------- Run | Yrd Mat Mat Min Zio Pro Turns Passed 6158 | 165 1027 1295 476 2786 409 Spaces Moved 3359 | 123 555 792 247 1459 183 Core 37 | 24 10 . . . 3 Treads . | . . . . . . Legs 3322 | 99 545 792 247 1459 180 Wheels . | . . . . . . Hover . | . . . . . . Flight . | . . . . . . Fastest Speed 50 | 50 120 120 190 190 190 Average Speed 169 | 106 148 143 190 190 191 Slowest Speed 400 | 120 250 260 190 190 400 Overloaded Moves . | . . . . . . Propulsion Burnouts . | . . . . . . Robots Hopped . | . . . . . . Cave-ins Triggered . | . . . . . . Exploration Rate (%) 43 | 10 51 46 38 88 30 Regions Visited 5 Branch Regions 3 Pre-discovered Areas 1 | . . . . 1 . Known Exits Taken . | . . . . . . Unknown Exits Taken 5 | 1 1 1 1 1 . Scrap Searched 2 | . . . 1 1 . Spaces Dug . | . . . . . . Terrain Destroyed 29 | . 5 17 . . 7 Melee . | . . . . . . Projectile . | . . . . . . AOE 29 | . 5 17 . . 7 Terrain Rammed . | . . . . . . Walls Destroyed . | . . . . . . Machines Disabled . | . . . . . . Actions | -11 -10 -9 -9 -7 -6 --------- Run | Yrd Mat Mat Min Zio Pro Total 3643 | 148 669 886 249 1474 217 Wait 54 | . 22 10 . 12 10 Move 3354 | 122 554 791 246 1458 183 Hop . | . . . . . . Pick Up 49 | 11 21 15 . 2 . Fast Attach . | . . . . . . Attach 17 | 5 4 5 . . 3 Detach . | . . . . . . Swap 14 | . 5 8 . . 1 Drop 31 | 1 12 13 . 2 3 Fire 122 | 9 49 44 3 . 17 Melee . | . . . . . . Ram . | . . . . . . Kick 2 | . 2 . . . . Crush . | . . . . . . Escape Stasis . | . . . . . . Rewire . | . . . . . . Trap . | . . . . . . Miscellaneous . | . . . . . . Route ------- -11/Scrapyard -10/Materials (discovered 2 exits: *Mat / [*Min]) -9/Materials (discovered 5 exits: Mat x3 / [*Min] / [*Sto]) -9/Mines (discovered 2 exits: *Mat / *Zio) -7/Zion -6/Proximity Caves History --------- Turn | Location | Event 2 | -11/Scrapyard | Met Revision 17 77 | -11/Scrapyard | Discovered new exit (range 8) 166 | -11/Scrapyard | Entered Materials 313 | -10/Materials | Build established: Mutant 578 | -10/Materials | Discovered new exit (range 13) 1106 | -10/Materials | Core integrity fell below 50% 1127 | -10/Materials | Discovered new exit (range 15) 1193 | -10/Materials | Entered another Materials area 1193 | -9/Materials | Evolved 2 slots: Propulsion x2 1422 | -9/Materials | Discovered new exit (range 6) 2045 | -9/Materials | Identified exit to Materials 2071 | -9/Materials | Build established: Scavenger-Mutant 2138 | -9/Materials | Discovered new exit (range 12) 2488 | -9/Materials | Entered Mines 2564 | -9/Mines | Discovered exit to Materials (range 8) 2603 | -9/Mines | Build established: Mutant 2913 | -9/Mines | A Derelict revealed a hidden shortcut to a safe place 2964 | -9/Mines | Entered Zion 3008 | -7/Zion | Found CR-A16's Pointy Stick 3068 | -7/Zion | Learned Factory trap positions 3211 | -7/Zion | Discovered new exit (range 12) 3281 | -7/Zion | Received a hallucinogenic algorithm 4188 | -7/Zion | Imprinted 4190 | -7/Zion | Declared Zion's savior 4440 | -7/Zion | Found Prototype Device 5750 | -7/Zion | Entered Proximity Caves 5750 | -6/Proximity Caves | Accompanied by 4 allies 5809 | -6/Proximity Caves | Learned Factory terminal intel 6092 | -6/Proximity Caves | Attracted the attention of an 0b10 base 6143 | -6/Proximity Caves | Core integrity fell below 50% 6154 | -6/Proximity Caves | Lost 4 allies 6157 | -6/Proximity Caves | Core integrity fell below 20% 6159 | -6/Proximity Caves | Destroyed by S-27 Virus with Autogun Last Messages --------------- Heat Sink. Destroyed Imp. Treads. Y-64 Sentinel heat damages core (-19). Slug penetrates Wall. Y-64 Sentinel heat spikes uncontrollably. Y-64 Sentinel destroyed. Switching to secondary target: G-50 Soldier. Critical hit (Burn: +37). Hvy. Assault Rifle destroyed. G-50 Soldier suffers critical hit (Burn). Hvy. Laser melted. G-50 Soldier destroyed. Hvy. Ion Engine destroyed. Critical hit (Burn: +37). G-50 Soldier suffers critical hit (Burn). Med. Laser destroyed. Carbon-fiber Leg fries itself beyond repair. Critical hit (Burn: +37). Grenade Launcher destroyed. [Achievement: First Step to Greatness] Map ----- +----------------------------------------------------+ | ?????????????????????????????????????????????????? | | ?????????????????????????????????????????????????? | | ?????????????????????????????????????????????????? | | ?????????????????????????????????????????????????? | | ?????????????????????????????????????????????????? | | ?????????????????????????????????????????????????? | | ?????????????????????????????????????????????????? | | ?????????????????????????????????????????????????? | | ??#####??????????????????????????????????????????? | | ?## ##????????????????????????? ???????????????? | | ?# #????????????????????????? ##?????????????? | | ??# #???????????????????????## #?????????????? | | ???# ##?????????????????????? #?????????????? | | #### #####?????????????????? #?????? ?????? | | #?????????#####+#??# ##???? ?????? | | #?????????" "??# ##### ??????? | | ##??##????#" "??# ???????? | | ##??## ? #" """# ????????? | | #???# # # #?????????? | | ##### # # #??????????? | | #"" # #??????????? | | #"T![% # #???????????? | | #### #### #""!!=[ ?# #????????????? | | ###??# #???# #""=%""???# #????????????? | | #????# ##???# #s###### #????????????? | | #????## ##?## g =@%=g ##???????????? | | #?????## #?# g %! #???????????? | | #??????## ## ###### #???????????? | | #???????# ######## ## #???## #???????????? | | ###???##### #####?#??######## ###???????????? | | ????### ## #???????## ##?????????????? | | ????# ## ######### ##??????????????? | | ????# ## ## ##??????????????? | | ###?# ### #??????????????? | | ### ##?# ## #?????????? | | ##??## ####### ## #???????? | | ##????## ###???# #????? #?????? | | ## #??????# ##?? #?????????????? | | ###### #??????# #?? #????????????? | | #????# #??????## #?? #????????????? | | #????# ##??????######## #??# ????????????? | | ##????## #??????????????# #??# ???????????? | | #??????# #??????????????? #?? ??????????? | | ???????## #???????????????####??#######?????????? | | ????????####?????????????????????????????????????? | | ?????????????????????????????????????????????????? | | ?????????????????????????????????????????????????? | | ?????????????????????????????????????????????????? | | ?????????????????????????????????????????????????? | | ?????????????????????????????????????????????????? | +----------------------------------------------------+ Best States ------------- Heat Dissipation 39 Energy Generation 14 Energy Capacity 280 Matter Stores 500 Matter Capacity 500 Sight Range 16 Terrain Scan Density 10 Armor Coverage 150 Resistance: KI 20 Resistance: TH 20 Resistance: EX 20 Resistance: EM 20 Resistance: I 20 Resistance: S 20 Resistance: P 20 Power Shielding 33 Evasion (%) 55 Offensive Hacking 10 Item Schematics ----------------- Sml. Laser | -9/Materials | Scanalyzed Hvy. Ion Engine | -9/Materials | Scanalyzed Aluminum Leg | -9/Materials | Scanalyzed Hacking Suite | -9/Materials | Scanalyzed Gatling Laser | -7/Zion | Archive Coil Gun | -7/Zion | Archive Angular Momentum Engine | -7/Zion | Archive Imp. Medium Armor Plating | -7/Zion | Archive Plasma Cannon | -7/Zion | Archive Imp. Core Shielding | -7/Zion | Archive Imp. Field Recycling Unit | -7/Zion | Archive Imp. Cryofiber Web | -7/Zion | Archive Arm. Huge Wheel | -7/Zion | Archive Magnetic Acceleration Cannon | -7/Zion | Archive Great Axe | -7/Zion | Archive Neutrino Core | -7/Zion | Archive Imp. Coolant Injector | -7/Zion | Archive Imp. Melee Analysis Suite | -7/Zion | Archive Robot Schematics ------------------ G-47 Trooper | -7/Zion | Archive A-02 Transporter | -7/Zion | Archive Fabricated ------------ Nothing Alien Tech Used ----------------- None Achievements -------------- First Step to Greatness Librarian One Hack Too Far Robot Respite Safety First The One Tourist Challenges ------------ None Game ------ Seed LatentScatterArchive Manual? 0 Play Time 01:23:02 Cumulative 2.7 hours Start 2024.03.17 @ 19:54:04 End 2024.03.17 @ 21:23:30 Sessions 1 Manual Loads 0 Difficulty Adventurer Special Mode None Game No. 1 Rogue 0 Adventurer 1 Explorer 0 Win Type - Total 0 Types 0/0/0/0/0/0/0/0/0 Lore% 5 Gallery% 2 Achievement% 3 Wizard Run 0 Options --------- Layout 1 ASCII 0 Keyboard 1 Movement Vi Keybinds 0 Fullscreen 1 Font 24/Terminus Map View 50x40 Zoom Use 0% Tactical HUD 0 Map Filters NONE Filters NONE Steam 1 RUN: 7c1eaa6a-bf2e-446b-9e01-becd0f867e76